Cogmind - Beta 16 @@@ ROGUE MODE // 2025.11.14 @ 16:39:29 Player: ChromeKnight Result: Destroyed by 0J-U22(R) with Subdweller Laser Performance ------------- Evolutions (0) 0 Regions Visited (2) 400 Robots Destroyed (13) 65 Value Destroyed (363) 363 Prototype IDs (12) 240 Alien Tech Used (0) 0 Bonus (0) 0 TOTAL SCORE: 1068 Bonus ------- None Cogmind --------- Core Integrity 0/250 Matter 168/300 Energy 97/100 System Corruption 0% Temperature Cool (6) Movement Rolling (150) Ox4 Location -10/Subcaves Parts ------- > --- POWER (1) -------- (None) > --- PROPULSION (2) --- Subdweller Monowheel Subdweller Monowheel > --- UTILITY (2) ------ Huge Storage Unit > --- WEAPON (2) ------- Subdweller Machine Gun Battle Cannon > --- INVENTORY (25) --- Light Treads Arachnoskeleton Large Storage Unit Machine Analyzer Makeshift Light Armor Plating Hacking Suite Hacking Suite Subdweller Beam Cannon Assault Rifle Mining Laser Peak State ------------ > --- POWER ------------ (None) > --- PROPULSION ------- Subdweller Monowheel Subdweller Monowheel > --- UTILITY ---------- Huge Storage Unit > --- WEAPON ----------- Subdweller Machine Gun Battle Cannon > --- INVENTORY -------- Light Treads Arachnoskeleton Large Storage Unit Machine Analyzer Makeshift Light Armor Plating Hacking Suite Hacking Suite Subdweller Beam Cannon Assault Rifle Mining Laser [Rating: 13] Favorites ----------- Power Ion Engine Engine Ion Engine Power Core Light Nuclear Core Propulsion Light Treads Treads Light Treads Wheel Subdweller Monowheel Utility Huge Storage Unit Storage Huge Storage Unit Weapon Light Assault Rifle Energy Gun Particle Gun Ballistic Gun Light Assault Rifle Ballistic Cannon Battle Cannon Special Weapon Mining Laser Build | -11 -10 -10 ------- Run | Yrd Mat Sub Slots Evolved . | . . . Power . | . . . Propulsion . | . . . Utility . | . . . Weapon . | . . . Parts Attached 16 | 7 4 5 Power 2 | 1 1 . Engine 1 | 1 . . Core 1 | . 1 . Reactor . | . . . Propulsion 4 | 2 . 2 Treads 2 | 2 . . Leg . | . . . Wheel 2 | . . 2 Hover . | . . . Flight . | . . . Utility 3 | 1 2 . Device . | . . . Storage 3 | 1 2 . Processor . | . . . Hackware . | . . . Protection . | . . . Artifact . | . . . Weapon 7 | 3 1 3 Energy Gun 1 | . 1 . Energy Cannon . | . . . Ballistic Gun 4 | 3 . 1 Ballistic Cannon 1 | . . 1 Launcher . | . . . Special Weapon 1 | . . 1 Impact Weapon . | . . . Slashing Weapon . | . . . Piercing Weapon . | . . . Special Melee Weapon . | . . . Unidentified Prototypes . | . . . Parts Lost 4 | . . 4 Power 1 | . . 1 Propulsion 2 | . . 2 Utility . | . . . Weapon 1 | . . 1 Highest Loss Streak 4 | . . 4 To Critical Strikes . | . . . Average Backups 4 | . 2 7 Power . | . . . Propulsion . | . . 1 Utility 2 | . . 4 Weapon 1 | . 1 2 Tool/Special . | . . . Unused Backups 7 | . . 7 Power . | . . . Propulsion 2 | . . 2 Utility 4 | . . 4 Weapon 1 | . . 1 Tool/Special . | . . . Average Slot Usage (%) 78 | . 85 72 Engine 7 | . 13 . Core 1 | . . 3 Treads 18 | . 28 8 Wheel 8 | . . 17 Storage 14 | . 14 14 Energy Gun 2 | . . 5 Ballistic Gun 21 | . 28 13 Ballistic Cannon 4 | . . 8 Peak Build Rating 13 | 6 10 13 Average Rating 8 | 4 6 10 On Entrance 5 | . 6 10 Avg Prop Armor Cover (%) 5 | . . 5 Naked Turns . | . . . Heaviest Build 89 | 13 89 89 Greatest Support 40 | 40 40 40 Greatest Overweight (x) 28 | . 2 28 Average Overweight (x) 1 | . . 3 Largest Inventory Capacity 25 | 8 25 25 Average Capacity 16 | 7 9 25 Most Carried 12 | 1 9 12 Average Carried 5 | . 2 8 Final Capacity 25 | 8 25 25 Final Carried 12 | 1 6 12 Class Distribution -------------------- 100% | Mutant Dominant Class ---------------- Mutant | -10/Materials Mutant | -10/Subcaves Resources | -11 -10 -10 ----------- Run | Yrd Mat Sub Matter Collected 450 | 175 211 64 Remotely . | . . . Salvage Created 521 | . 425 96 Parts 28 | . 25 3 Haulers Intercepted 1 | . 1 . Recyclers Shooed 1 | . 1 . Parts Field Recycled . | . . . Retrieved Matter . | . . . Parts Self-Destructed 3 | . . 3 Prevented . | . . . Parts Restored . | . . . Kills | -11 -10 -10 ------- Run | Yrd Mat Sub Combat Hostiles Destroyed 8 | . 6 2 Guns 8 | . 6 2 Classes Destroyed 6 | . 5 1 Worker 1 | . 1 . Builder 1 | . 1 . Hauler 1 | . 1 . Operator 2 | . 2 . Grunt 6 | . 6 . Subdweller 2 | . . 2 Best Kill Streak 2 | . 2 1 Combat Bots Only 2 | . 2 1 Max Kills in Single Turn 1 | . 1 1 Gunslinging . | . . . Exploded . | . . . Melee . | . . . Uniques/NPCs Destroyed . | . . . Combat | -11 -10 -10 -------- Run | Yrd Mat Sub Hostile Shots Fired 85 | . 48 37 Missed 23 | . 13 10 Hits 62 | . 35 27 Projectile 62 | . 35 27 Critical Strikes 2 | . . 2 Damage Taken 1049 | . 480 569 Core 259 | . 98 161 Absorbed by Shields . | . . . Core Remaining (%) 100 | 100 . . Volleys Fired 85 | . 53 32 Largest 2 | . 2 2 Hottest 85 | . 40 85 Shots Fired 156 | . 106 50 Gun 142 | . 106 36 Cannon 14 | . . 14 Launcher . | . . . Special . | . . . Kinetic 138 | . 106 32 Thermal 18 | . . 18 Explosive . | . . . Electromagnetic . | . . . Robot Hit Streak 13 | . 6 13 Robot Miss Streak 4 | . 4 2 Penetration Max . | . . . Secondary Targets 1 | . . 1 Max Gunslinging Chain 1 | . . 1 Shots Hit Robots 103 | . 66 37 Core Hits 40 | . 34 6 Critical Kills . | . . . Critical Parts Destroyed . | . . . Critical Strikes 1 | . . 1 Burn 1 | . . 1 Melee Attacks . | . . . Impact . | . . . Slashing . | . . . Piercing . | . . . Sneak Attacks . | . . . Combat Hostiles . | . . . Follow-up Attacks . | . . . Damage Inflicted 1085 | . 552 533 Guns 980 | . 552 428 Cannons 105 | . . 105 Explosions . | . . . Melee . | . . . Ramming . | . . . Kinetic 836 | . 552 284 Thermal 249 | . . 249 Explosive . | . . . Electromagnetic . | . . . Impact . | . . . Slashing . | . . . Piercing . | . . . Highest Corruption . | . . . Average Corruption . | . . . Corruption Purged . | . . . Corruption Blocked . | . . . Overload Shots . | . . . Overflow Damage . | . . . Projectiles . | . . . Explosions . | . . . Melee . | . . . Knockbacks . | . . . Impact . | . . . Kinetic . | . . . Secondary . | . . . Self-Inflicted Damage . | . . . Shots . | . . . Rammed . | . . . Targets Rammed . | . . . Kicked . | . . . Crushed . | . . . Highest Temperature 34 | . 34 14 Average Temperature 13 | . 14 7 Received Heat Transfer 402 | . 276 126 Siege Activations . | . . . Martial Activations . | . . . Shielding Activations . | . . . Robots Disrupted . | . . . Combat Hostiles . | . . . Robots Corrupted . | . . . Combat Hostiles . | . . . Parts Fried . | . . . Impact Corruptions . | . . . Robots Melted . | . . . Combat Hostiles . | . . . Parts Melted . | . . . Heat Transferred 666 | . . 666 Parts Sabotaged . | . . . Parts Stolen . | . . . Parts Stripped . | . . . Power Chain Reactions . | . . . Alert | -11 -10 -10 ------- Run | Yrd Mat Sub Maximum Alert Level . | . . . Low Security (%) 100 | 100 100 . Level 1 . | . . . Level 2 . | . . . Level 3 . | . . . Level 4 . | . . . Level 5 . | . . . High Security . | . . . Max Security . | . . . Peak Influence 83 | . 83 . Initial . | . . . Average 11 | . 12 . Influence Increases 203 | . 203 . Destroy 0b10 Robot/C 120 | . 120 . Destroy 0b10 Robot/NC 25 | . 25 . Destroy Leader 32 | . 32 . Successful Hack 11 | . 11 . Lose Combat Pursuer 15 | . 15 . Influence Decreases 203 | . 176 27 Entered New Map 14 | . . 14 Time Decay 179 | . 166 13 Lost Ally 10 | . 10 . Squads Dispatched . | . . . Investigation . | . . . Extermination . | . . . Reinforcement . | . . . Assault . | . . . Garrison . | . . . Intercept . | . . . Searches Triggered . | . . . Construction Impeded . | . . . Haulers Reinforced . | . . . Active Scanning Responses . | . . . Cargo Convoy Interrupts . | . . . Stealth | -11 -10 -10 --------- Run | Yrd Mat Sub Distress Signals 2 | . 2 . Communications Jammed . | . . . Distress Signals . | . . . Times Spotted 25 | . 21 4 Peak Tracking Total 4 | . 4 2 Tactical Retreats 1 | . 1 . Traps | -11 -10 -10 ------- Run | Yrd Mat Sub Traps Triggered . | . . . Indirectly . | . . . Trap Hack Attempts . | . . . Triggered . | . . . Disarmed . | . . . Reprogrammed . | . . . Reused . | . . . Traps Extracted . | . . . Installed . | . . . Triggered . | . . . Machines | -11 -10 -10 ---------- Run | Yrd Mat Sub Machines Disabled 1 | . . 1 Max in Single Turn 1 | . . 1 Machines Repaired . | . . . Machines Dismantled . | . . . Machines Sabotaged . | . . . Overloaded Fab Kills . | . . . Hacking | -11 -10 -10 --------- Run | Yrd Mat Sub Machines Accessed 9 | . 7 2 Terminals 7 | . 7 . Fabricators . | . . . Repair Stations . | . . . Recycling Units . | . . . Scanalyzers . | . . . Garrison Access . | . . . Total Hacks 20 | . 15 5 Successful 12 | . 7 5 Failed 8 | . 8 . Catastrophic . | . . . Database Lockouts . | . . . Manual 13 | . 13 . Terminals 15 | . 15 . Fabricators . | . . . Repair Stations . | . . . Recycling Units . | . . . Scanalyzers . | . . . Garrison Access . | . . . Terminal Hacks 6 | . 1 5 Record 4 | . . 4 Robot Analysis 1 | . 1 . Proto ID Catalog 1 | . . 1 Fabricator Hacks . | . . . Repair Station Hacks . | . . . Recycling Unit Hacks . | . . . Scanalyzer . | . . . Garrison Access Hacks . | . . . Unauthorized Hacks 6 | . 6 . Terminals 6 | . 6 . Assimilate 1 | . 1 . Skim 5 | . 5 . Fabricators . | . . . Repair Stations . | . . . Recycling Units . | . . . Scanalyzers . | . . . Garrison Access . | . . . Data Cores Recovered . | . . . Used . | . . . Hacking Detections 3 | . 3 . Full Trace Events . | . . . Feedback Events . | . . . Feedback Blocked . | . . . Robot Schematics Acquired . | . . . Robots Built . | . . . Authchips . | . . . Time . | . . . Total Robot Build Rating . | . . . Part Schematics Acquired . | . . . Parts Built . | . . . Authchips . | . . . Time . | . . . Total Part Build Rating . | . . . Part Studies Acquired . | . . . Parts Repaired . | . . . Time . | . . . Parts Recycled . | . . . Recycled Matter . | . . . Retrieved Matter . | . . . Retrieved Components . | . . . Parts Scanalyzed . | . . . Part Schematics Acquired . | . . . Parts Damaged . | . . . Bothacking | -11 -10 -10 ------------ Run | Yrd Mat Sub Used RIF Installer . | . . . Robots Hacked . | . . . Non-combat . | . . . Combat . | . . . Robot Hacks Applied . | . . . Relay Couplers Released . | . . . Fabnet Peak Effective % . | . . . Robots Rewired . | . . . Allies Hacked . | . . . Hacks Repelled . | . . . Allies | -11 -10 -10 -------- Run | Yrd Mat Sub Total Allies 1 | . 1 . Largest Group 1 | . 1 . Highest-Rated Group 10 | . 10 . Highest-Rated Ally 10 | . 10 . Total Orders 2 | . 2 . STAY 1 | . 1 . FOLLOW 1 | . 1 . Ally Attacks . | . . . Total Damage . | . . . Kills . | . . . Allies Corrupted . | . . . Allies Melted . | . . . Intel | -11 -10 -10 ------- Run | Yrd Mat Sub Active Infowar (turns) . | . . . Robot Analysis Total 1 | . 1 . Derelict Logs Recovered 1 | . . 1 Drone Launches . | . . . Drone Recoveries . | . . . Exploration | -11 -10 -10 ------------- Run | Yrd Mat Sub Turns Passed 2127 | 81 1050 996 Spaces Moved 947 | 46 461 440 Core 6 | 3 . 3 Treads 563 | 43 461 59 Legs . | . . . Wheels 378 | . . 378 Hover . | . . . Flight . | . . . Fastest Speed 50 | 50 160 130 Average Speed 169 | 152 160 181 Slowest Speed 1450 | 160 320 1450 Overloaded Moves . | . . . Propulsion Burnouts . | . . . Robots Hopped . | . . . Potential Cave-ins . | . . . Cave-ins Triggered . | . . . Exploration Rate (%) 38 | 4 86 25 Regions Visited 2 Branch Regions 1 Pre-discovered Areas 2 | . 1 1 Known Exits Taken 1 | . 1 . Unknown Exits Taken 1 | 1 . . Scrap Searched . | . . . Spaces Dug . | . . . Terrain Destroyed . | . . . Melee . | . . . Projectile . | . . . AOE . | . . . Terrain Rammed . | . . . Walls Destroyed . | . . . Machines Disabled . | . . . Actions | -11 -10 -10 --------- Run | Yrd Mat Sub Total 1330 | 53 690 587 Wait 264 | . 161 103 Move 945 | 45 460 440 Hop . | . . . Pick Up 12 | 1 7 4 Fast Attach 10 | 6 1 3 Attach 3 | . 2 1 Detach 2 | . 2 . Swap 5 | 1 1 3 Drop 4 | . 3 1 Fire 85 | . 53 32 Melee . | . . . Ram . | . . . Kick . | . . . Crush . | . . . Escape Stasis . | . . . Rewire . | . . . Trap . | . . . Miscellaneous . | . . . Route ------- -11/Scrapyard -10/Materials (discovered 5 exits: *Mat x3 / *Min / *Sub) -10/Subcaves (discovered 3 exits: Mat x2 / Rec) History --------- Turn | Location | Event 11 | -11/Scrapyard | Discovered new exit (range 15) 82 | -11/Scrapyard | Entered Materials 311 | -10/Materials | Build established: Mutant 349 | -10/Materials | Discovered new exit (range 13) 422 | -10/Materials | Identified exit to Subcaves 458 | -10/Materials | Identified exit to Materials 458 | -10/Materials | Identified exit to Mines 484 | -10/Materials | Learned location of 1 exit from Materials 499 | -10/Materials | Learned 2 Mines zone layouts 507 | -10/Materials | Learned location of Mines (-9) 508 | -10/Materials | Learned Storage stockpile data 523 | -10/Materials | Learned 2 Materials zone layouts 1132 | -10/Materials | Entered Subcaves 1133 | -10/Subcaves | Approached by a straggling Scientist 1248 | -10/Subcaves | Curiously followed by a Cobbler waking with a query about "LVR3C" 1408 | -10/Subcaves | Core integrity fell below 50% 1423 | -10/Subcaves | Core integrity fell below 20% 1451 | -10/Subcaves | Lost 4 parts (1p2n1w) 1619 | -10/Subcaves | Visited Clippyterm 1624 | -10/Subcaves | Identified exit to Recycling 1624 | -10/Subcaves | Identified exit to Materials 1624 | -10/Subcaves | Learned location of Extension (-5) 1747 | -10/Subcaves | Visited 4L-MR0's lab 1761 | -10/Subcaves | Found Arachnoskeleton 2128 | -10/Subcaves | Destroyed by 0J-U22(R) with Subdweller Laser Last Messages --------------- 01756_ Testing Chamber breached. 01760_ 4L-MR0 mumbles to no one in particular: "Damn Subs sneaking around stealing my stuff." 01761_ Acquired Arachnoskeleton. 01765_ 4L-MR0 mumbles: "I'm surprised some of them are even willing to come in here given their fear of my usual visitors." 01769_ 4L-MR0 mumbles: "Who knows where that last prototype ended up, probably tossed aside somewhere as if it were useless junk..." 01928_ Sub. Monowheel shoots sparks and powers down. 01960_ Acquired 12 matter. 01962_ OA-Z4J(O) collects matter. 01985_ OA-Z4J(O) puts together Sub. Beam Cannon. 01993_ Acquired Sub. Beam Cannon. 02031_ Acquired 9 matter. 02037_ Acquired 5 matter. 02044_ OA-Z4J(O) collects matter. 02064_ Acquired 8 matter. Map ----- +----------------------------------------------------+ | ?????????????????????????????????????????????????? | | ?????????????????????????????????????????????????? | | ?????????????????????????????????????????????????? | | ?????????????????????????????????????????????????? | | ?????????????????????????????????????????????????? | | ?????????????????????????????????????????????????? | | ?????????????????????????????????????????????????? | | ?????????????????????????????????????????????????? | | #####?????????????##?????????????????????????????? | | # ####????????# ##????????????????????????????? | | ?#% #??????## ####??? ?????????????????????? | | ??# #?????## ### %????????????????????? | | ???# ##????# R ????????????????????? | | ????# #???## ? ?R ????????????????????? | | ???## ##??## #? #? %????????????????????? | | #### ##### ## #? ###??????????????????? | | ## # #? # ?????????????????? | | # ??????????????????? | | # ????##??????????????? | | #### #??? #??????????????? | | ### ##### ##??# ### ?##????????????? | | #?# ##???## #???# < # ##???????????? | | ###?# #?????## ##??## R #???????????? | | #??## #??????## ##??# R #???????????? | | ##?## #??????# #### < & #????????????? | | ??## ##???### @ R< < #???????????????? | | ### #### ## ## #### < #???????????????? | | # ###?####??# ## #???????????????? | | ##????????? #??? ????????????? | | ##?????????? #????? #???????????? | | # #####??????????? #???????????????????? | | ## #####???????????????# #???????????????????? | | ?####???????????????????## #???????????????????? | | ??????????????????????????# #???????????????????? | | ??????????????????????????? #???????????????????? | | ??????????????????????????? ##???????????????????? | | ???????????????????????????##????????????????????? | | ?????????????????????????????????????????????????? | | ?????????????????????????????????????????????????? | | ?????????????????????????????????????????????????? | | ?????????????????????????????????????????????????? | | ?????????????????????????????????????????????????? | | ?????????????????????????????????????????????????? | | ?????????????????????????????????????????????????? | | ?????????????????????????????????????????????????? | | ?????????????????????????????????????????????????? | | ?????????????????????????????????????????????????? | | ?????????????????????????????????????????????????? | | ?????????????????????????????????????????????????? | | ?????????????????????????????????????????????????? | +----------------------------------------------------+ Best States ------------- Heat Dissipation 25 Energy Generation 14 Energy Capacity 250 Matter Stores 300 Matter Capacity 300 Sight Range 16 Terrain Scan Density 10 Evasion (%) 40 Recoil Reduction 2 Item Schematics ----------------- None Robot Schematics ------------------ None Fabricated ------------ Nothing Repaired ---------- Nothing Studied --------- None Alien Tech Used ----------------- None Achievements -------------- None Challenges ------------ None Game ------ Seed SpectralBiomechanicalShell Manual? 0 Play Time 00:10:37 Cumulative 539.7 hours Start 2025.11.14 @ 16:11:50 End 2025.11.14 @ 16:39:29 Sessions 1 Manual Loads 0 Difficulty Rogue Special Mode None Game No. 871 Rogue 716 Adventurer 148 Explorer 7 Win Type - Total 26 Types 20/1/4/1/0/0/0/0/0/0 Lore% 78 Gallery% 80 Achievement% 65 Wizard Run 0 Options --------- Layout 1 ASCII 0 Keyboard 0 Movement Numpad Keybinds 0 Fullscreen 2 Font 24/Smallcaps Map View 50x35 Zoom Use 0% Tactical HUD 1 Map Filters NONE Filters NONE Steam 1 RUN: 47befa8b-5c59-4fad-87a5-55258809be9a